bitfinex-derivatives/quotes_ETHF0:USTF0_20251009
["timestamp","ask_amount","ask_price","bid_price","bid_amount"]
[1760051722300,0.34088567,4369.9,4369.8,42.09337]
[1760051722493,0.34088567,4369.9,4369.8,41.86437]
[1760051722696,0.34088567,4369.9,4369.8,42.09337]
[1760051723299,0.8943926,4369.9,4369.8,42.09337]
[1760051723700,0.34088567,4369.9,4369.8,42.09337]
[1760051726604,0.89438118,4369.9,4369.8,42.09337]
[1760051732217,0.55558118,4369.9,4369.8,42.09337]
[1760051735223,0.89438118,4369.9,4369.8,42.09337]
[1760051736818,0.34088567,4369.9,4369.8,42.09337]
[1760051737225,0.34088567,4369.9,4369.8,41.86437]
[1760051737420,8.72081921,4369.9,4369.1,2.87132277]
[1760051737720,0.2278,4368.6,4368.5,0.64079]
[1760051737922,0.7773,4368.6,4368.5,41.21179]
[1760051738122,0.7773,4368.6,4368.5,41.44079]
[1760051738520,3.79819062,4368.6,4368.5,40.8]
[1760051738720,0.2247,4368.1,4368.0,0.23096117]
[1760051738921,0.7773,4368.1,4368.0,0.23096117]
[1760051739124,0.7773,4368.1,4368.0,41.03096117]
[1760051739518,0.7773,4368.1,4368.0,41.44279117]
[1760051743736,0.7773,4368.1,4368.0,41.21379117]
[1760051743934,3.68623639,4368.1,4368.0,0.64279117]
[1760051744230,3.68623639,4368.1,4368.0,1.09689117]
[1760051744438,3.68623639,4368.1,4368.0,41.89689117]
[1760051746228,3.23373639,4368.1,4368.0,42.09499117]
[1760051748139,3.23373639,4368.1,4368.0,41.21379117]
[1760051748338,3.67273639,4368.1,4368.0,0.64279117]
[1760051749038,3.67273639,4368.1,4368.0,0.87379117]
[1760051749236,3.67273639,4368.1,4368.0,0.64479117]
[1760051751934,8.67273639,4368.1,4366.4,1.84219277]
[1760051752136,0.6955,4366.5,4366.4,1.05969]
[1760051752337,0.9081,4366.5,4366.4,0.41199]
[1760051752542,3.90921057,4366.5,4366.4,41.44299]
[1760051752743,3.69661057,4366.5,4366.4,41.64299]
[1760051752936,0.3431,4366.8,4366.7,0.86156]
[1760051753138,0.4691,4367.0,4366.9,0.86154]
[1760051753443,0.4691,4367.0,4366.9,1.09054]
[1760051753444,0.91001405,4367.0,4366.9,1.09054]
[1760051754260,3.85686878,4367.0,4366.9,0.86154]
[1760051754447,3.85686878,4367.0,4366.9,0.64294]
[1760051754641,3.85686878,4367.0,4366.9,0.41194]
[1760051754838,3.85686878,4367.0,4366.9,0.64294]
[1760051756338,3.85686878,4367.0,4366.9,0.41194]
[1760051756740,0.565,4366.5,4366.4,40.80246368]
[1760051756936,0.9081,4366.5,4366.4,0.00246368]
[1760051757138,0.565,4365.5,4365.4,0.231]
[1760051757345,0.565,4365.5,4365.4,41.031]
[1760051757847,0.3431,4365.8,4365.4,41.231]
[1760051758042,0.2264,4366.2,4366.1,0.4496]
[1760051758239,0.5695,4365.6,4365.5,0.6796]
[1760051758442,0.5695,4365.6,4365.5,1.29167]
[1760051758643,0.3431,4365.6,4365.5,1.29167]
[1760051758839,0.6955,4366.0,4365.9,0.86163]
[1760051759046,0.6955,4366.0,4365.9,1.06163]
[1760051759345,3.9452571,4366.0,4365.9,0.86163]
[1760051759546,3.9452571,4366.0,4365.9,41.66163]
[1760051760251,3.9452571,4366.0,4365.9,40.8]
[1760051760843,3.9452571,4366.0,4365.8,0.41204]
[1760051761047,0.565,4365.5,4365.4,0.23261261]
[1760051761247,0.9081,4365.5,4365.4,0.64469261]
[1760051762349,3.93801524,4365.5,4365.4,41.44469261]
[1760051762948,3.93801524,4365.5,4365.4,40.80161261]
[1760051763344,0.439,4364.7,4364.6,0.23]
[1760051763540,0.439,4364.7,4364.6,0.41216]
[1760051763742,0.7821,4364.7,4364.6,0.41216]
[1760051763952,3.74156697,4364.7,4364.6,0.41216]
[1760051764356,3.74156697,4364.7,4364.6,0.41504424]
[1760051767849,0.1307,4364.5,4363.3,1.03068]
[1760051768055,0.4473,4364.3,4364.2,0.41219]
[1760051768356,0.4473,4364.3,4364.1,0.4122]
[1760051768556,0.7938,4364.2,4364.1,0.4122]
[1760051768949,0.7938,4364.2,4364.1,0.41446056]
[1760051769153,3.7764297,4364.2,4364.1,0.64096056]
[1760051769354,3.7764297,4364.2,4364.1,0.41446056]
[1760051769553,3.7764297,4364.2,4364.1,0.64096056]
[1760051769755,4.0074297,4364.2,4364.1,0.85786056]
[1760051770447,4.0074297,4364.2,4364.1,0.00226056]
[1760051770957,4.0074297,4364.2,4363.3,1.03068]
[1760051770958,0.1307,4363.0,4361.6,0.3344]
[1760051771143,0.3465,4362.9,4362.8,0.7778]
[1760051771446,0.2217,4363.6,4363.5,1.19005]
[1760051771651,0.4519,4363.6,4363.5,1.19005]
[1760051771852,1.02641057,4363.6,4363.5,1.19181442]
[1760051772053,3.93938108,4363.6,4363.5,1.19181442]
[1760051772458,3.93938108,4363.6,4363.5,0.00176442]
[1760051772961,3.93938108,4363.6,4363.5,0.22826442]
[1760051774970,3.93938108,4363.6,4363.5,0.00176442]
[1760051775157,0.2217,4362.5,4362.1,0.3344]
[1760051775365,1.0238,4362.4,4362.3,0.63887]
[1760051775565,3.94787047,4362.4,4362.3,41.0265]
[1760051776163,3.94787047,4362.4,4362.3,0.22920241]
[1760051776367,3.94787047,4362.4,4362.3,0.00270241]
[1760051776869,3.94887047,4362.4,4362.3,0.00270241]
[1760051778366,3.71787047,4362.4,4362.3,0.00270241]
[1760051778568,3.94887047,4362.4,4362.3,0.00270241]
[1760051780266,4.26614165,4362.4,4362.3,0.00270241]
[1760051780471,3.71787047,4362.4,4362.3,0.22920241]
[1760051780871,3.94887047,4362.4,4362.3,0.00270241]
[1760051781374,3.71787047,4362.4,4362.3,0.00270241]
[1760051781566,3.94887047,4362.4,4362.3,0.22920241]
[1760051782367,0.4473,4361.9,4361.8,0.41242]
[1760051782566,1.0248,4361.9,4361.8,1.19022]
[1760051782767,3.77766847,4361.9,4361.8,1.19022]
[1760051783270,4.00866847,4361.9,4361.8,1.19022]
[1760051783467,4.00866847,4361.9,4361.8,0.85823333]
[1760051784173,4.00866847,4361.9,4361.8,0.64133333]
[1760051784972,3.77766847,4361.9,4361.8,0.41483333]
[1760051785173,4.00866847,4361.9,4361.8,0.41483333]
[1760051786374,4.55821082,4361.9,4361.8,0.41483333]
[1760051786772,4.32721082,4361.9,4361.8,0.64133333]
[1760051786979,3.77766847,4361.9,4361.8,1.19263333]
[1760051787176,3.21486847,4361.9,4361.8,1.19263333]
[1760051787777,3.78306847,4361.9,4361.8,1.19263333]
[1760051788375,4.33307624,4361.9,4361.8,1.19263333]
[1760051790674,3.53387624,4361.9,4361.8,1.19263333]
[1760051790874,3.53387624,4361.9,4361.5,0.138]
[1760051790875,0.1307,4361.0,4360.7,0.3344]
[1760051791070,0.9245,4361.5,4360.8,0.3344]
[1760051791371,0.7938,4360.6,4360.5,0.63904]
[1760051791579,1.34390974,4360.6,4360.5,1.19034]
[1760051791774,3.20064978,4360.6,4360.5,42.12834]
[1760051792079,3.20064978,4360.6,4360.5,42.13084903]
[1760051792274,4.09744997,4360.6,4360.5,41.99284903]
[1760051793679,4.32304997,4360.6,4360.5,0.85844903]
[1760051794083,4.32304997,4360.6,4360.5,0.64154903]
[1760051796170,4.32304997,4360.6,4360.5,0.98254903]
[1760051796374,4.32304997,4360.6,4360.5,1.19654903]
[1760051797377,4.55404997,4360.6,4360.5,0.41504903]
[1760051798171,4.55404997,4360.6,4360.5,0.64584903]
[1760051798782,4.55404997,4360.6,4360.5,0.85984903]
[1760051798980,4.55404997,4360.6,4360.5,1.20084903]
[1760051800080,3.75094997,4360.6,4360.5,1.20084903]
[1760051800281,4.07654997,4360.6,4360.5,1.32744903]
[1760051802085,4.07654997,4360.6,4360.5,1.32744903]
[1760051803273,3.52924997,4360.6,4360.5,1.32744903]
[1760051804182,3.86614997,4360.6,4360.5,1.32744903]
[1760051804383,4.07654997,4360.6,4360.5,1.32744903]
[1760051804781,3.52924997,4360.6,4360.5,1.32744903]
[1760051805177,3.52924997,4360.6,4360.5,1.55844903]
[1760051805586,3.74314997,4360.6,4360.5,1.55844903]
[1760051805787,4.08064997,4360.6,4360.5,1.55844903]
[1760051805984,4.30224997,4360.6,4360.5,1.43184903]
[1760051806687,4.30224997,4360.6,4359.8,1.03152]
[1760051806688,0.773,4359.6,4359.5,0.64404]
[1760051806895,0.773,4359.6,4359.5,1.18224]
[1760051807191,0.773,4359.6,4359.5,42.21324]
[1760051807584,0.77524115,4359.6,4359.5,42.21525992]
[1760051807888,0.00224115,4359.6,4359.5,42.34215992]
[1760051808485,0.00224115,4359.6,4359.5,47.34215992]
[1760051809791,0.5703,4361.0,4360.9,0.64391]
[1760051809991,1.11779477,4361.0,4360.9,0.95861]
[1760051810190,4.03500377,4361.0,4360.9,0.95861]
[1760051810400,4.37250377,4361.0,4360.9,0.95861]
[1760051810590,4.37250377,4361.0,4360.9,1.18211]
[1760051810789,4.37516826,4361.0,4360.9,1.18211]
[1760051812490,4.37516826,4361.0,4360.9,0.64391]
[1760051812696,4.37516826,4361.0,4360.9,0.41251]
[1760051815096,4.37516826,4361.0,4360.9,0.64391]
[1760051817798,4.60616826,4361.0,4360.9,0.64391]
[1760051820096,4.24036826,4361.0,4360.9,1.18211]
[1760051820397,3.46736826,4361.0,4360.9,1.18211]
[1760051820799,0.55015926,4361.0,4360.9,1.18211]
[1760051821397,4.49e-06,4361.0,4360.9,6.18211]
[1760051821795,4.49e-06,4361.0,4360.9,46.98211]
[1760051821995,0.773,4362.1,4362.0,0.4124]
[1760051822202,1.31155475,4362.1,4362.0,0.4124]
[1760051822502,0.773,4362.1,4362.0,0.6438]
[1760051822695,1.31111149,4362.1,4362.0,0.9585]
[1760051822896,4.28880112,4362.1,4362.0,1.182]
[1760051823092,4.29087123,4362.1,4362.0,1.182]
[1760051823400,2.97975974,4362.1,4362.0,1.3089]
[1760051823791,0.3487,4363.0,4362.9,0.41232]
[1760051823996,1.10601025,4363.0,4362.9,0.64372]
[1760051824199,4.07663299,4363.0,4362.9,0.64372]
[1760051824394,4.64513299,4363.0,4362.9,0.95842]
[1760051824792,4.28168937,4363.0,4362.9,1.18433159]
[1760051825199,2.97297912,4363.0,4362.9,1.18433159]
[1760051830398,0.54702,4364.0,4362.9,1.18433159]
[1760051830399,0.1348,4364.0,4362.9,0.77201159]
[1760051830605,0.4349,4363.1,4363.0,1.17401]
[1760051830804,0.7513,4363.1,4363.0,1.17401]
[1760051831205,0.7513,4363.1,4363.0,1.31311]
[1760051831604,0.75398278,4363.1,4363.0,1.31311]
[1760051832103,0.53018278,4363.1,4363.0,1.31311]
[1760051833301,3.79341463,4363.1,4363.0,0.41231]
[1760051834203,8.79341463,4363.1,4363.0,0.41231]
[1760051834507,0.8893,4363.0,4362.9,0.41232]
[1760051835009,3.85821158,4363.0,4362.9,0.41232]
[1760051835402,3.85821158,4363.0,4362.9,0.63612]
[1760051835602,3.85821158,4363.0,4362.9,0.63866697]
[1760051836206,4.08821158,4363.0,4362.9,0.63866697]
[1760051838301,4.08821158,4363.0,4362.9,0.41486697]
[1760051841805,4.50052158,4363.0,4362.9,0.41486697]
[1760051842400,4.50052158,4363.0,4362.9,0.00254697]
[1760051842603,0.8893,4362.5,4362.4,0.41236]
[1760051842804,1.1193,4362.5,4362.4,0.41236]
[1760051843006,4.05142084,4362.5,4362.4,0.41236]
[1760051843712,4.46378084,4362.5,4362.4,0.00243434]
[1760051844114,4.46378084,4362.5,4362.4,0.41479434]
[1760051845112,4.05142084,4362.5,4362.4,0.41479434]
[1760051845410,4.05142084,4362.5,4362.4,1.17649434]
[1760051845616,4.05142084,4362.5,4362.4,0.63859434]
[1760051849420,4.58775908,4362.5,4362.4,0.63859434]
[1760051850519,4.05142084,4362.5,4362.4,0.63859434]
[1760051850817,2.93212084,4362.5,4362.4,1.17649434]
[1760051852213,0.3164,4362.9,4362.8,1.17403]
[1760051853113,0.5275,4362.9,4362.8,1.17403]
[1760051853314,0.00268278,4363.1,4363.0,1.31311]
[1760051853913,0.00268278,4363.1,4363.0,42.11311]
[1760051855824,0.00268278,4363.1,4363.0,47.11311]
[1760051857124,0.00268278,4363.1,4363.0,47.34311]
[1760051857314,1.64376739,4365.3,4363.0,46.9308]
[1760051857516,0.7553,4364.3,4364.2,0.62729]
[1760051857719,1.28989958,4364.3,4364.2,0.62729]
[1760051857917,4.3031577,4364.3,4364.2,0.62729]
[1760051858114,4.3031577,4364.3,4364.2,0.84109]
[1760051858424,1.35492366,4365.0,4364.9,1.17343]
[1760051858425,0.7553,4365.0,4364.9,1.17343]
[1760051858615,0.75712896,4365.0,4364.9,1.17343]
[1760051858922,3.72048987,4365.0,4364.9,1.17343]
[1760051859321,3.17648987,4365.0,4364.9,1.17343]
[1760051859518,0.00182896,4365.0,4364.9,1.17343]
[1760051859917,0.00182896,4365.0,4364.9,6.17343]
[1760051861025,0.00182896,4365.0,4364.9,46.97343]
[1760051862319,0.00182896,4365.0,4364.9,41.97343]
[1760051863022,0.32442896,4365.0,4364.9,41.97343]
[1760051863221,0.46192896,4365.0,4364.9,41.64103]
[1760051863420,0.46192896,4365.0,4364.9,0.84103]
[1760051863421,0.89462896,4365.0,4364.9,0.84103]
[1760051863620,0.89462896,4365.0,4364.9,0.62723]
[1760051864125,0.89462896,4365.0,4364.9,0.84103]
[1760051864425,0.89462896,4365.0,4364.9,1.17343]
[1760051865019,0.89462896,4365.0,4364.9,0.84103]
[1760051865431,0.57202896,4365.0,4364.8,0.41214]
[1760051865620,0.7506,4364.9,4364.8,0.41214]
[1760051866727,3.79403323,4364.9,4364.8,0.41214]
[1760051867924,0.3161,4366.2,4364.8,5.4319]
[1760051868118,0.5332,4366.2,4366.1,1.17001]
[1760051868325,0.7506,4366.7,4366.6,0.62256]
[1760051868830,0.7506,4366.7,4366.6,1.16996]
[1760051869024,0.75235105,4366.7,4366.6,1.1728245]
[1760051873635,3.75862421,4366.7,4366.6,1.1728245]
[1760051874033,0.5332,4365.8,4365.7,0.758]
[1760051874229,0.7506,4365.8,4365.7,0.758]
[1760051874628,0.128,4366.5,4366.3,0.41199]
[1760051874932,0.128,4366.5,4366.3,1.17215754]
[1760051874933,0.7506,4366.4,4366.3,1.17215754]
[1760051875132,3.7674185,4366.4,4366.3,1.17215754]
[1760051875835,0.00175105,4366.7,4366.6,0.84387]
[1760051875836,0.21885105,4366.7,4366.6,0.84387]
[1760051876036,0.00175105,4366.7,4366.6,1.16997]
[1760051876338,2.96003283,4366.7,4366.6,1.16997]
[1760051878237,3.17713283,4366.7,4366.6,1.16997]
[1760051879340,3.71063283,4366.7,4366.6,0.84387]
[1760051880439,3.71063283,4366.7,4366.6,1.16997]
[1760051884137,0.4345,4366.4,4366.3,0.41416754]
[1760051884439,0.7506,4366.4,4366.3,0.41416754]
[1760051884630,3.7070154,4366.4,4366.3,0.41416754]
[1760051885635,3.7070154,4366.4,4366.3,0.62476754]
[1760051886039,3.7070154,4366.4,4366.3,0.95426754]
[1760051887837,3.7070154,4366.4,4366.3,0.62476754]
[1760051889336,3.7070154,4366.4,4366.3,1.17746754]
[1760051889538,3.9370154,4366.4,4366.3,1.17746754]
[1760051889841,3.7070154,4366.4,4366.3,1.17746754]
[1760051890038,2.9564154,4366.4,4366.3,1.17746754]
[1760051890640,2.96127718,4366.6,4366.5,0.54448]
[1760051890836,2.96127718,4366.6,4366.5,0.98328]
[1760051890837,3.70382241,4366.6,4366.5,0.98328]
[1760051891038,4.02952241,4366.6,4366.5,1.31278]
[1760051891235,1.06824523,4366.6,4366.5,1.31278]
[1760051891541,4.01286035,4366.6,4366.5,1.31278]
[1760051892344,3.68716035,4366.6,4366.5,1.31278]
[1760051893338,3.47326035,4366.6,4366.5,1.31278]
[1760051893533,0.00175105,4366.7,4366.6,0.41197]
[1760051893739,0.53065402,4366.7,4366.6,1.18027]
[1760051900444,0.06098402,4366.7,4366.6,1.18027]
[1760051900642,1.21692366,4367.7,4367.5,0.462]
[1760051900946,0.3477,4367.9,4367.8,1.18015]
[1760051900947,0.5616,4367.9,4367.8,1.18015]
[1760051901443,3.50623396,4367.9,4367.8,1.18015]
[1760051901644,3.50793154,4367.9,4367.8,1.18015]
[1760051902037,2.96833154,4367.9,4367.8,1.18015]
[1760051902241,3.73903154,4367.9,4367.8,1.18015]
[1760051911350,3.18223154,4367.9,4367.8,1.18015]
[1760051911554,2.96833154,4367.9,4367.8,1.18015]
[1760051914859,7.58e-06,4367.9,4367.8,6.40915]
[1760051915263,7.58e-06,4367.9,4367.8,47.20915]
[1760051919965,0.3239,4369.1,4369.0,0.2134]
[1760051920269,0.7656,4369.1,4369.0,0.41174]
[1760051920475,3.70146927,4369.1,4369.0,0.41174]
[1760051920969,3.70413459,4369.1,4369.0,0.62514]
[1760051921667,3.70413459,4369.1,4369.0,0.96894]
[1760051924673,3.70413459,4369.1,4369.0,0.62514]
[1760051926270,4.21742855,4369.1,4369.0,0.62514]
[1760051926671,3.70413459,4369.1,4369.0,0.62514]
[1760051927072,3.70413459,4369.1,4369.0,0.94484]
[1760051927375,4.21759019,4369.1,4369.0,1.15694]
[1760051927765,4.21759019,4369.1,4369.0,1.28694]
[1760051927966,3.16103459,4369.1,4369.0,1.28694]
[1760051929671,2.93853459,4369.1,4369.0,1.28694]
[1760051930071,0.00266532,4369.1,4369.0,1.28694]
[1760051930370,0.00266532,4369.1,4369.0,6.51594]
[1760051930772,0.00266532,4369.1,4369.0,47.31594]
[1760051931573,0.00266532,4369.1,4369.0,47.31598]
[1760051932274,0.2183,4369.7,4369.6,0.83873]
[1760051932575,0.5462,4369.7,4369.6,1.15843]
[1760051932777,0.2183,4369.7,4369.6,1.15843]
[1760051932977,3.26322151,4369.9,4369.8,0.41171]
[1760051933179,0.84412256,4369.9,4369.8,1.16117454]
[1760051933379,0.3301744,4369.9,4369.8,1.16117454]
[1760051933573,0.0022744,4369.9,4369.8,1.16117454]
[1760051939183,0.5484744,4369.9,4369.8,1.16117454]
[1760051941077,0.7574744,4369.9,4369.8,0.74946454]
[1760051941278,8.71742392,4369.9,4369.8,0.41447454]
[1760051941485,8.71742392,4369.9,4369.8,0.00276454]
[1760051941683,9.230477,4369.9,4369.8,0.00276454]
[1760051941988,9.230477,4369.9,4369.8,0.41447454]
[1760051942483,9.230477,4369.9,4369.8,0.62937454]
[1760051942984,3.71742392,4369.9,4369.8,1.16117454]
[1760051944778,3.71742392,4369.9,4369.8,0.84147454]
[1760051944984,3.71742392,4369.9,4369.8,0.41447454]
[1760051946488,4.23089133,4369.9,4369.8,0.41447454]
[1760051946689,3.71742392,4369.9,4369.8,0.41447454]
[1760051947285,4.23095262,4369.9,4369.8,0.41447454]
[1760051948584,4.23095262,4369.9,4369.8,0.00276454]
[1760051948888,4.23095262,4369.9,4369.8,0.41447454]
[1760051954685,4.23095262,4369.9,4369.8,1.18227454]
[1760051954891,3.71742392,4369.9,4369.8,1.18227454]
[1760051955087,3.18052392,4369.9,4369.8,1.18227454]
[1760051955487,2.96222392,4369.9,4369.8,1.18227454]
[1760051956083,3.17142392,4369.9,4369.8,1.18227454]
[1760051956283,3.69902392,4369.9,4369.8,1.18227454]
[1760051958996,3.17142392,4369.9,4369.8,1.18227454]
[1760051960998,3.48432392,4369.9,4369.8,1.18227454]
[1760051961497,3.69902392,4369.9,4369.8,1.18227454]
[1760051962099,4.21372528,4369.9,4369.8,1.18227454]
[1760051963091,4.44272528,4369.9,4369.8,0.41447454]
[1760051974701,4.21372528,4369.9,4369.8,0.96227454]
[1760051974900,4.44272528,4369.9,4369.8,1.18227454]
[1760051976210,4.21372528,4369.9,4369.8,1.18227454]
[1760051976394,4.44272528,4369.9,4369.8,1.18227454]
[1760051977509,4.21372528,4369.9,4369.8,1.18227454]
[1760051977708,3.17142392,4369.9,4369.8,1.18227454]
[1760051978409,2.96222392,4369.9,4369.8,1.18227454]
[1760051978608,2.45197392,4369.9,4369.8,1.18227454]
[1760051979615,2.45395989,4369.9,4369.8,1.18227454]
[1760051980607,2.78065989,4369.9,4369.8,1.18227454]
[1760051980805,2.99985989,4369.9,4369.8,1.18227454]
[1760051981208,3.23135989,4369.9,4369.8,1.18227454]
[1760051982412,3.23135989,4369.9,4369.8,0.63757454]
[1760051982911,3.23135989,4369.9,4369.8,0.98337454]
[1760051983111,3.23135989,4369.9,4369.8,1.20997454]
[1760051983510,2.78065989,4369.9,4369.8,1.20997454]
[1760051983811,2.99985989,4369.9,4369.8,1.20997454]
[1760051984413,3.23135989,4369.9,4369.8,1.20997454]
[1760051986410,2.45395989,4369.9,4369.8,1.20997454]
[1760051987214,2.99305989,4369.9,4369.8,1.20997454]
[1760051988316,3.21095989,4369.9,4369.8,1.20997454]
[1760051998326,2.45395989,4369.9,4369.8,1.20997454]
[1760051999323,2.78265989,4369.9,4369.8,1.20997454]
[1760052000027,2.99305989,4369.9,4369.8,1.20997454]
[1760052001325,3.21095989,4369.9,4369.8,1.20997454]
[1760052002925,2.45395989,4369.9,4369.8,1.20997454]
[1760052003130,1.91593989,4369.9,4369.8,1.20997454]
[1760052006230,2.45593989,4369.9,4369.8,1.20997454]
[1760052006736,2.97020492,4369.9,4369.8,1.20997454]
[1760052009839,1.91593989,4369.9,4369.8,1.20997454]
[1760052010139,0.00198597,4369.9,4369.8,1.20997454]
[1760052011837,0.5739,4371.0,4370.9,0.6342]
[1760052012031,0.95757715,4371.0,4370.9,1.1787]
[1760052012239,0.51427715,4371.0,4370.9,1.1787]
[1760052012435,0.1321,4372.0,4371.4,0.86496]
[1760052012436,0.5703,4371.5,4371.4,0.86496]
[1760052012635,1.08661104,4371.5,4371.4,1.17866]
[1760052012834,1.08921451,4371.5,4371.4,1.17866]
[1760052013035,1.40331451,4371.5,4371.4,1.17866]
[1760052014141,0.4451,4371.0,4370.9,40.8]
[1760052014336,0.7574,4370.4,4369.9,0.3137]
[1760052014531,0.7574,4370.4,4369.3,0.3137]
[1760052014532,0.7574,4370.1,4369.3,0.3137]
[1760052014737,0.7574,4369.9,4369.8,0.41446454]
[1760052015343,3.73641103,4369.9,4369.8,0.41446454]
[1760052017944,3.73641103,4369.9,4369.8,0.63706454]
[1760052018144,3.96541103,4369.9,4369.8,0.63706454]
[1760052018345,3.96541103,4369.9,4369.8,0.95076454]
[1760052018543,3.96541103,4369.9,4369.8,0.63706454]
[1760052018844,3.96541103,4369.9,4369.8,0.41446454]
[1760052020240,3.96541103,4369.9,4369.8,0.63706454]
[1760052021849,3.96541103,4369.9,4369.8,0.41446454]
[1760052024052,4.48990206,4369.9,4369.8,0.00276454]
[1760052024249,4.90160206,4369.9,4369.8,0.00276454]
[1760052024555,0.8884,4369.0,4368.9,0.41179]
[1760052024748,0.8884,4369.0,4368.9,0.63439]
[1760052024952,0.8884,4369.0,4368.9,41.43439]
[1760052025348,0.8884,4369.0,4368.9,41.43641047]
[1760052026855,3.81339764,4369.0,4368.9,41.43641047]
[1760052027457,3.81339764,4369.0,4368.9,0.41381047]
[1760052028753,3.81339764,4369.0,4368.9,0.63641047]
[1760052029056,3.68239764,4369.0,4368.9,1.18091047]
[1760052030650,0.54,4369.4,4369.3,0.86515]
[1760052030851,0.54,4369.4,4369.3,1.17885]
[1760052031151,3.50389453,4369.4,4369.3,1.17885]
[1760052031750,3.18979453,4369.4,4369.3,1.17885]
[1760052031954,2.96389453,4369.4,4369.3,1.17885]
[1760052032153,0.54,4369.8,4369.7,1.17882]
[1760052032658,3.72744062,4369.8,4369.7,1.17882]
[1760052034551,3.72744062,4369.8,4369.7,0.63432]
[1760052035254,0.131,4369.5,4369.4,0.94804]
[1760052035556,0.8884,4369.5,4369.4,0.63434]
[1760052036055,0.8884,4369.5,4369.4,0.95074]
[1760052036255,0.8884,4369.5,4369.4,1.16264]
[1760052039357,0.7574,4369.5,4369.4,1.16264]
[1760052040960,0.7812,4369.8,4369.7,1.17132]
[1760052041258,0.5522,4369.8,4369.7,1.17132]
[1760052041559,3.81250966,4369.8,4369.7,1.17132]
[1760052043456,3.24170966,4369.8,4369.7,1.17132]
[1760052043651,3.81250966,4369.8,4369.7,0.7596]
[1760052043852,3.81250966,4369.8,4369.7,0.41172]
[1760052044061,3.81250966,4369.8,4369.7,41.21172]
[1760052044364,4.3391831,4369.8,4369.7,41.52812]
[1760052044664,4.3391831,4369.8,4369.7,1.17132]
[1760052045759,3.5581831,4369.8,4369.7,1.17132]
[1760052046169,0.5303,4370.3,4370.2,1.19497]
[1760052046360,1.05748244,4370.3,4370.2,1.19497]
[1760052046559,4.03234326,4370.3,4370.2,1.19497]
[1760052046766,2.97486082,4370.3,4370.2,1.19497]
[1760052046966,0.3212,4370.8,4370.7,1.19492]
[1760052046967,0.7593,4370.8,4370.7,1.19492]
[1760052047267,1.28654587,4370.8,4370.7,1.19492]
[1760052047458,4.28200779,4370.8,4370.7,1.19492]
[1760052048658,4.05300779,4370.8,4370.7,1.19492]
[1760052049261,4.27880779,4370.8,4370.7,1.19492]
[1760052053367,4.27880779,4370.8,4370.7,0.7833]
[1760052053665,0.3212,4370.7,4370.2,0.3471]
[1760052053862,3.97750779,4370.8,4370.2,0.5745]
[1760052053863,0.7561,4370.3,4370.2,0.5745]
[1760052054063,0.7561,4370.3,4370.2,0.7833]
[1760052055269,0.7561,4370.3,4370.2,1.19497]
[1760052057772,0.5303,4370.3,4370.2,1.19497]
[1760052059779,0.7561,4370.3,4370.2,1.19497]
[1760052060478,3.66492142,4370.3,4370.2,0.84787]
[1760052060669,3.34372142,4370.3,4370.0,0.41168]
[1760052060866,3.34372142,4370.3,4369.5,1.02934]
[1760052060867,0.7561,4369.6,4369.5,1.07693]
[1760052061571,0.7561,4369.6,4369.5,1.42403]
[1760052061772,3.71723291,4369.6,4369.5,1.19503]
[1760052063877,3.71723291,4369.6,4369.3,40.8]
[1760052063878,3.39603291,4369.6,4369.3,40.8]
[1760052064079,0.8879,4369.0,4368.9,0.00202047]
[1760052064786,3.80201951,4369.0,4368.9,0.00202047]
[1760052066580,3.80201951,4369.0,4368.9,0.22942047]
[1760052066884,3.80201951,4369.0,4368.9,0.76962047]
[1760052067080,3.80201951,4369.0,4368.9,0.22942047]
[1760052068782,3.80201951,4369.0,4368.9,0.54622047]
[1760052069183,3.67021951,4369.0,4368.9,0.76962047]
[1760052070679,3.67021951,4369.0,4368.9,0.00202047]
[1760052070680,3.79721951,4369.0,4368.9,0.00202047]
[1760052073380,3.79721951,4369.0,4368.5,40.8]
[1760052073381,0.127,4368.5,4368.0,0.3168]
[1760052073689,0.7494,4368.1,4368.0,0.5417]
[1760052074391,0.75110556,4368.1,4368.0,41.34336031]
[1760052074582,0.00170556,4368.1,4368.0,41.88174031]
[1760052074985,0.00170556,4368.1,4368.0,46.88174031]
[1760052076792,0.00170556,4368.1,4368.0,0.95524031]
[1760052076793,0.75110556,4368.1,4368.0,0.95524031]
[1760052077285,0.75110556,4368.1,4368.0,41.75524031]
[1760052083597,0.00170556,4368.1,4368.0,41.88174031]
[1760052083900,0.00170556,4368.1,4368.0,46.88174031]
[1760052092203,0.31590556,4368.1,4368.0,41.98424031]
[1760052092405,0.31590556,4368.1,4368.0,41.66744031]
[1760052092606,0.31590556,4368.1,4368.0,41.43844031]
[1760052092807,3.70248801,4368.1,4368.0,0.41354031]
[1760052094910,4.23530873,4368.1,4368.0,0.41354031]
[1760052096709,0.7732,4367.4,4367.3,0.41194]
[1760052096909,0.7732,4367.4,4367.3,0.62844]
[1760052097110,3.77258631,4367.4,4367.3,0.62844]
[1760052097511,3.77258631,4367.4,4367.3,0.96364]
[1760052097815,3.77258631,4367.4,4367.3,0.96547842]
[1760052099510,3.77258631,4367.4,4367.3,0.63027842]
[1760052101412,3.77258631,4367.4,4367.3,1.17897842]
[1760052101618,3.22008631,4367.4,4367.3,1.17897842]
[1760052102114,3.55218631,4367.4,4367.3,1.17897842]
[1760052102311,0.1271,4368.0,4367.3,1.17897842]
[1760052102312,0.2207,4368.0,4367.7,0.3352]
[1760052102616,0.55450556,4368.1,4368.0,1.30938]
[1760052102806,0.77490556,4368.1,4368.0,1.17708]
[1760052103011,3.68593252,4368.1,4368.0,1.17708]
[1760052104817,3.68593252,4368.1,4368.0,0.62838]
[1760052105011,4.21816754,4368.1,4368.0,0.41188]
[1760052106717,0.5306,4367.4,4367.3,0.96707842]
[1760052106911,0.7514,4367.4,4367.3,0.96707842]
[1760052107116,0.7514,4367.4,4367.3,1.17877842]
[1760052108711,0.3165,4367.4,4367.3,1.17877842]
[1760052108913,0.2208,4368.0,4367.9,1.17689]
[1760052109106,0.00170556,4368.1,4368.0,1.30508]
[1760052109512,0.00170556,4368.1,4368.0,1.53408]
[1760052110112,0.00170556,4368.1,4368.0,42.33408]
[1760052113020,0.31820556,4368.1,4368.0,42.33408]
[1760052113212,0.31820556,4368.1,4368.0,41.97688]
[1760052113413,0.31820556,4368.1,4368.0,42.20588]
[1760052113814,0.00170556,4368.1,4368.0,42.33408]